bitfinex/quotes_SOLUSD_20250401
["timestamp","ask_amount","ask_price","bid_price","bid_amount"]
[1743499524653,44.96503813,128.85,128.84,0.0001]
[1743499525151,24.96503813,128.85,128.84,0.0001]
[1743499525335,20.0,128.84,128.83,0.03002646]
[1743499525539,27.20913813,128.84,128.83,0.03002646]
[1743499527048,34.97063813,128.84,128.83,0.03002646]
[1743499529159,14.97063813,128.84,128.83,0.03002646]
[1743499529358,34.97063813,128.84,128.83,0.03002646]
[1743499532148,125.50719065,128.84,128.83,2.646e-05]
[1743499533037,96.67063813,128.84,128.83,2.646e-05]
[1743499535770,125.50719065,128.84,128.82,24.56499129]
[1743499536074,20.0,128.81,128.8,6.474e-05]
[1743499536275,27.20913813,128.81,128.8,6.474e-05]
[1743499537554,34.97243813,128.81,128.8,6.474e-05]
[1743499546255,54.38083813,128.81,128.77,0.03]
[1743499546469,7.20913813,128.78,128.77,0.03]
[1743499546976,14.97423813,128.78,128.77,0.03]
[1743499548372,20.0,128.75,128.74,20.33]
[1743499548561,27.20913813,128.75,128.74,20.33]
[1743499548873,34.97603813,128.75,128.74,20.33]
[1743499549481,27.20913813,128.75,128.74,20.33]
[1743499550152,34.97603813,128.75,128.74,20.33]
[1743499550369,27.20913813,128.75,128.74,20.33]
[1743499550771,7.20913813,128.75,128.74,39.263972]
[1743499550967,7.20913813,128.76,128.75,38.64964886]
[1743499551191,7.20913813,128.76,128.74,0.33]
[1743499551507,7.20913813,128.75,128.74,0.33]
[1743499552777,7.7669,128.75,128.74,0.33]
[1743499552991,14.97603813,128.75,128.74,0.33]
[1743499557396,44.97603813,128.75,128.74,0.33]
[1743499560585,37.20913813,128.75,128.74,0.33]
[1743499560784,30.0,128.75,128.74,18.97964886]
[1743499561096,30.0,128.75,128.74,19.263972]
[1743499561301,30.0,128.75,128.74,27.031472]
[1743499562104,30.0,128.75,128.74,0.33]
[1743499562289,30.0,128.75,128.74,27.031472]
[1743499563408,37.20913813,128.75,128.74,18.97964886]
[1743499563709,7.20913813,128.77,128.75,38.64964886]
[1743499564086,7.20913813,128.78,128.77,20.0]
[1743499565505,88.90913813,128.79,128.77,20.0]
[1743499565807,96.67363813,128.79,128.77,20.0]
[1743499566200,88.90913813,128.79,128.77,20.0]
[1743499566512,7.20913813,128.79,128.78,18.64964886]
[1743499567291,7.20913813,128.79,128.78,18.933972]
[1743499567689,0.063,128.8,128.79,38.933972]
[1743499568188,7.27213813,128.8,128.79,38.933972]
[1743499568394,7.27213813,128.8,128.79,38.64964886]
[1743499569702,0.063,128.8,128.79,46.698472]
[1743499570117,0.063,128.8,128.79,38.933972]
[1743499571717,7.27213813,128.8,128.79,38.64964886]
[1743499572812,7.27213813,128.8,128.79,20.0]
[1743499573318,20.0,128.78,128.77,38.963972]
[1743499573519,27.20913813,128.78,128.77,38.67964886]
[1743499573723,34.97423813,128.78,128.77,38.67964886]
[1743499575018,27.20913813,128.78,128.77,38.67964886]
[1743499575221,20.0,128.78,128.77,38.963972]
[1743499575428,0.063,128.8,128.79,20.0]
[1743499575802,0.063,128.8,128.79,38.933972]
[1743499582322,27.27213813,128.8,128.79,38.933972]
[1743499582521,0.063,128.8,128.79,38.933972]
[1743499582722,27.27213813,128.8,128.79,38.64964886]
[1743499583310,27.27213813,128.8,128.77,20.03]
[1743499583519,27.20913813,128.78,128.77,38.67964886]
[1743499583824,27.20913813,128.78,128.77,20.03]
[1743499584026,34.97423813,128.78,128.77,20.03]
[1743499584327,34.97423813,128.78,128.77,0.03]
[1743499587903,7.20913813,128.76,128.75,20.0]
[1743499588205,14.97543813,128.76,128.75,20.0]
[1743499588628,14.97543813,128.76,128.74,0.33]
[1743499588828,7.20913813,128.75,128.74,0.33]
[1743499590232,14.97603813,128.75,128.74,0.33]
[1743499593618,7.7669,128.75,128.74,0.33]
[1743499594230,96.67573813,128.76,128.75,20.0]
[1743499595411,96.67573813,128.76,128.74,0.33]
[1743499595613,7.20913813,128.75,128.74,0.33]
[1743499596517,7.20913813,128.75,128.73,20.03]
[1743499596738,27.20913813,128.74,128.73,20.03]
[1743499597116,20.0,128.74,128.73,20.31432314]
[1743499599337,34.97663813,128.74,128.73,0.03]
[1743499599527,34.97663813,128.74,128.73,38.67964886]
[1743499599735,27.7675,128.74,128.73,38.67964886]
[1743499599912,34.97663813,128.74,128.73,38.67964886]
[1743499600114,34.97663813,128.74,128.73,20.03]
[1743499602521,34.97663813,128.74,128.73,0.03]
[1743499607046,7.7668,128.76,128.75,20.0]
[1743499607232,0.063,128.77,128.76,0.28432314]
[1743499607437,20.0,128.76,128.75,38.933972]
[1743499607633,7.27213813,128.77,128.76,18.64964886]
[1743499608248,7.27213813,128.77,128.75,20.0]
[1743499608432,27.20913813,128.76,128.75,38.64964886]
[1743499608751,27.20913813,128.76,128.75,20.0]
[1743499609139,34.97543813,128.76,128.75,20.0]
[1743499609347,34.97543813,128.76,128.73,38.963972]
[1743499609537,7.20913813,128.74,128.73,20.03]
[1743499609932,7.20913813,128.74,128.73,0.03]
[1743499612549,7.20913813,128.74,128.73,20.03]
[1743499613751,7.20913813,128.74,128.73,38.67964886]
[1743499615447,14.97663813,128.74,128.73,20.03]
[1743499617755,14.97663813,128.74,128.73,0.03]
[1743499618953,44.97663813,128.74,128.73,0.03]
[1743499619156,51.79623813,128.74,128.73,0.03]
[1743499620128,51.85923813,128.74,128.73,0.03]
[1743499625160,51.85923813,128.74,128.69,20.0]
[1743499625367,7.20913813,128.7,128.69,20.0]
[1743499625870,20.0,128.68,128.67,20.0]
[1743499626153,27.20913813,128.68,128.67,38.64964886]
[1743499626469,27.20913813,128.68,128.67,20.0]
[1743499626770,27.20913813,128.68,128.67,38.64964886]
[1743499627536,27.20913813,128.68,128.67,38.933972]
[1743499627736,7.20913813,128.69,128.68,18.64964886]
[1743499628061,7.20913813,128.7,128.69,20.0]
[1743499628555,7.769,128.72,128.69,20.0]
[1743499628757,20.0,128.7,128.69,38.64964886]
[1743499628946,27.20913813,128.7,128.69,38.64964886]
[1743499629453,27.20913813,128.7,128.69,20.0]
[1743499629655,27.20913813,128.7,128.67,20.0]
[1743499629960,7.20913813,128.68,128.67,38.64964886]
[1743499630342,14.98033813,128.68,128.67,38.64964886]
[1743499630737,7.20913813,128.68,128.67,38.64964886]
[1743499631152,14.98033813,128.68,128.67,38.64964886]
[1743499631461,27.7709,128.69,128.67,38.64964886]
[1743499631760,7.20913813,128.68,128.67,38.64964886]
[1743499633857,7.7697,128.71,128.67,38.933972]
[1743499634039,7.7697,128.71,128.7,20.0]
[1743499634240,14.97883813,128.71,128.7,20.0]
[1743499634440,14.97883813,128.71,128.67,38.64964886]
[1743499634661,7.20913813,128.69,128.67,38.64964886]
[1743499635050,7.7697,128.71,128.67,38.64964886]
[1743499635051,27.20913813,128.68,128.67,20.0]
[1743499635362,34.98033813,128.68,128.67,20.0]
[1743499636845,27.20913813,128.68,128.67,20.0]
[1743499637045,34.98033813,128.68,128.67,20.0]
[1743499640566,34.98033813,128.68,128.64,18.64964886]
[1743499640770,27.20913813,128.65,128.64,18.64964886]
[1743499641266,27.20913813,128.65,128.63,22.7293804]
[1743499641455,27.20913813,128.64,128.63,41.37902926]
[1743499641871,20.0,128.64,128.63,41.52119083]
[1743499642056,116.68273813,128.64,128.63,2.7293804]
[1743499642657,108.90913813,128.64,128.63,2.7293804]
[1743499642864,108.90913813,128.64,128.63,41.37902926]
[1743499643361,27.20913813,128.64,128.63,41.52119083]
[1743499643561,27.20913813,128.64,128.63,21.52119083]
[1743499643769,27.20913813,128.64,128.63,41.52119083]
[1743499644368,27.20913813,128.64,128.63,22.7293804]
[1743499644576,27.20913813,128.64,128.63,2.7293804]
[1743499645267,35.13204069,128.64,128.63,2.7293804]
[1743499645579,116.83204069,128.64,128.63,2.7293804]
[1743499647360,109.05844069,128.64,128.63,2.7293804]
[1743499647977,109.05844069,128.64,128.63,22.7293804]
[1743499648582,20.14930256,128.64,128.63,22.7293804]
[1743499648761,27.35844069,128.64,128.63,22.7293804]
[1743499649082,27.35844069,128.64,128.63,2.7293804]
[1743499649287,27.35844069,128.64,128.63,22.7293804]
[1743499649652,0.14930256,128.64,128.63,49.29539083]
[1743499649872,0.14930256,128.64,128.63,41.52119083]
[1743499650869,0.14930256,128.64,128.63,49.29539083]
[1743499651071,0.14930256,128.64,128.63,41.6633524]
[1743499652358,0.14930256,128.64,128.63,49.4375524]
[1743499655679,0.14930256,128.64,128.63,49.4675524]
[1743499656276,0.14363624,128.65,128.64,18.933972]
[1743499656581,0.14363624,128.65,128.64,28.2613624]
[1743499656972,0.17042972,128.66,128.65,46.323772]
[1743499658358,5.662e-05,128.67,128.66,19.433972]
[1743499658562,5.662e-05,128.67,128.66,20.98748045]
[1743499658987,5.662e-05,128.67,128.66,28.75988045]
[1743499659389,0.15456356,128.68,128.67,38.933972]
[1743499659568,0.15456356,128.68,128.67,39.433972]
[1743499661770,0.1621706,128.7,128.68,27.205172]
[1743499663701,6.769e-05,128.69,128.68,28.75837413]
[1743499664709,0.232134,128.72,128.7,49.960672]
[1743499665203,0.063,128.72,128.71,18.933972]
[1743499665383,0.21752724,128.72,128.71,18.933972]
[1743499665988,0.21752724,128.72,128.71,26.703372]
[1743499670985,0.21752724,128.72,128.71,18.933972]
[1743499671292,0.21752724,128.72,128.7,20.0]
[1743499671293,15.19546537,128.72,128.7,20.0]
[1743499671491,14.97853813,128.71,128.7,38.79181043]
[1743499672120,14.97853813,128.71,128.7,20.0]
[1743499672304,14.97853813,128.71,128.7,38.64964886]
[1743499672811,21.76313813,128.71,128.7,38.64964886]
[1743499673000,13.99373813,128.71,128.7,38.64964886]
[1743499673615,20.0,128.68,128.67,18.64964886]
[1743499673813,27.20913813,128.68,128.67,18.64964886]
[1743499675822,27.20913813,128.68,128.66,20.0]
[1743499675823,34.98043813,128.68,128.66,20.0]
[1743499675988,20.0,128.65,128.64,38.79181043]
[1743499676188,27.20913813,128.65,128.64,38.64964886]
[1743499676706,27.20913813,128.65,128.64,38.79181043]
[1743499676905,7.20913813,128.66,128.65,18.79181043]
[1743499677115,27.20913813,128.67,128.66,38.79181043]
[1743499677805,31.31889394,128.67,128.66,38.79181043]
[1743499678311,31.31889394,128.67,128.66,38.933972]
[1743499678502,31.31889394,128.67,128.66,38.79181043]
[1743499679422,31.31889394,128.67,128.66,20.03]
[1743499679623,31.31889394,128.67,128.66,38.67964886]
[1743499681205,11.31889394,128.67,128.66,38.82181043]
[1743499682805,11.31889394,128.68,128.67,18.64964886]
[1743499683020,11.31889394,128.69,128.67,18.933972]
[1743499683322,93.01889394,128.7,128.69,0.14216157]
[1743499685399,93.17237586,128.7,128.69,0.14216157]
[1743499685620,123.17237586,128.7,128.69,0.14216157]
[1743499686128,41.47237586,128.7,128.69,0.14216157]
[1743499687906,49.24237586,128.7,128.69,0.14216157]
[1743499688220,49.24237586,128.7,128.68,20.0]
[1743499688415,11.31889394,128.69,128.68,38.64964886]
[1743499689910,19.08949394,128.69,128.68,38.64964886]
[1743499691119,20.0,128.67,128.66,0.03]
[1743499691326,41.85789394,128.67,128.66,0.03]
[1743499691514,11.31889394,128.64,128.63,2.7593804]
[1743499691714,11.31889394,128.64,128.63,21.40902926]
[1743499692022,19.09249394,128.64,128.63,21.40902926]
[1743499692213,30.41138788,128.64,128.63,2.7593804]
[1743499692817,7.7736,128.64,128.63,2.7593804]
[1743499693020,11.31889394,128.64,128.63,21.6933524]
[1743499693206,11.31889394,128.64,128.63,21.40902926]
[1743499693610,19.09249394,128.64,128.63,21.40902926]
[1743499694019,33.90318788,128.64,128.63,2.7593804]
[1743499694823,22.58429394,128.64,128.63,2.7593804]
[1743499695120,11.31889394,128.64,128.63,21.40902926]
[1743499697429,19.09249394,128.64,128.63,2.7593804]
[1743499698315,11.31889394,128.64,128.63,2.7593804]
[1743499698627,19.09249394,128.64,128.63,2.7593804]
[1743499698816,22.63778788,128.64,128.63,2.7593804]
[1743499699016,11.31889394,128.64,128.63,2.7593804]
[1743499700533,11.31889394,128.64,128.63,21.40902926]
[1743499701330,19.09249394,128.64,128.63,2.7593804]
[1743499701516,11.31889394,128.64,128.63,2.7593804]
[1743499702204,19.09249394,128.64,128.63,2.7593804]
[1743499702409,30.41138788,128.64,128.63,2.7593804]
[1743499703731,36.95928788,128.64,128.63,2.7593804]
[1743499703904,36.95928788,128.64,128.62,0.03]
[1743499704109,20.0,128.6,128.57,20.0]
[1743499704312,11.31889394,128.58,128.57,18.64964886]
[1743499704613,27.7784,128.56,128.55,20.0]
[1743499704926,39.09729394,128.56,128.55,20.0]
[1743499705119,39.09729394,128.56,128.53,38.64964886]
[1743499705428,11.31889394,128.55,128.53,38.933972]
[1743499705731,11.31889394,128.55,128.53,38.79181043]
[1743499706033,27.94092539,128.56,128.53,38.64964886]
[1743499706326,11.31889394,128.54,128.53,20.0]
[1743499706528,20.16252539,128.56,128.55,20.0]
[1743499706713,0.16252539,128.56,128.55,38.64964886]
[1743499706920,0.16252539,128.56,128.55,46.57081043]
[1743499707707,0.16252539,128.56,128.55,46.712972]
[1743499713822,0.16252539,128.56,128.55,47.212972]
[1743499714327,0.16252539,128.56,128.55,46.712972]
[1743499715643,0.16252539,128.56,128.55,46.742972]
[1743499716136,0.16252539,128.56,128.55,20.31432314]
[1743499716326,0.16252539,128.56,128.55,38.963972]
[1743499717740,0.16252539,128.56,128.55,38.82181043]
[1743499719043,0.16252539,128.56,128.55,46.742972]
[1743499720342,0.16252539,128.56,128.55,38.963972]
[1743499725146,7.7779,128.57,128.56,18.79181043]
[1743499725345,7.94520664,128.57,128.56,18.79181043]
[1743499725649,7.94530664,128.57,128.55,20.03]
[1743499726248,0.16730664,128.57,128.55,20.03]
[1743499727248,0.16730664,128.57,128.56,18.79181043]
[1743499727775,0.16730664,128.57,128.56,18.933972]
[1743499727937,0.16730664,128.57,128.55,20.03]
[1743499728268,0.16730664,128.57,128.56,18.79181043]
[1743499731155,0.16730664,128.57,128.56,18.933972]
[1743499737069,89.64530664,128.57,128.55,20.03]
[1743499737258,89.64530664,128.57,128.56,20.0]
[1743499737570,96.89778358,128.57,128.55,0.03]
[1743499737773,7.25247694,128.56,128.55,0.03]
[1743499738592,10.59027694,128.56,128.55,0.03]
[1743499739295,18.36867694,128.56,128.55,0.03]
[1743499739659,20.0,128.53,128.5,18.79181043]
[1743499739856,7.25247694,128.52,128.5,18.79181043]
[1743499740274,7.25247694,128.51,128.48,0.14216157]
[1743499740476,27.1228,128.52,128.48,18.79181043]
[1743499740680,34.37527694,128.52,128.49,20.0]
[1743499740883,7.25247694,128.53,128.5,18.79181043]
[1743499741100,7.25247694,128.54,128.5,0.14216157]
[1743499741275,7.25247694,128.54,128.5,18.79181043]
[1743499741479,15.03227694,128.54,128.5,18.79181043]
[1743499741691,81.7,128.55,128.52,18.79181043]
[1743499742001,15.19778358,128.57,128.54,20.0]
[1743499742203,0.16730664,128.57,128.55,18.79181043]
[1743499742495,0.16730664,128.57,128.56,38.79181043]
[1743499742789,0.16730664,128.57,128.56,38.933972]
[1743499743691,0.16730664,128.57,128.56,46.712372]
[1743499745295,0.22544782,128.62,128.61,18.79181043]
[1743499746590,0.22544782,128.62,128.61,18.933972]
[1743499747584,0.22544782,128.62,128.61,26.709372]
[1743499749915,6.359e-05,128.63,128.62,38.933972]
[1743499750405,6.359e-05,128.63,128.62,40.98788946]
[1743499750787,6.359e-05,128.63,128.62,40.48788946]
[1743499751109,6.359e-05,128.63,128.62,40.98788946]
[1743499751697,6.359e-05,128.63,128.62,48.76268946]
[1743499752300,0.14811649,128.64,128.63,19.433972]
[1743499753493,0.22084954,128.66,128.65,38.79181043]
[1743499753710,0.22084954,128.66,128.65,38.933972]
[1743499755207,0.22084954,128.66,128.65,46.706972]
[1743499756791,0.22084954,128.66,128.65,38.933972]
[1743499758204,0.22084954,128.66,128.65,46.706972]
[1743499758911,0.22084954,128.66,128.65,38.933972]
[1743499762606,0.22084954,128.66,128.65,46.706972]
[1743499765205,0.2056757,128.66,128.65,46.706972]
[1743499766125,0.2056757,128.66,128.65,47.206972]
[1743499766313,0.2056757,128.66,128.65,48.76062889]
[1743499767515,0.2056757,128.66,128.65,38.933972]
[1743499768111,0.2056757,128.66,128.65,46.706972]
[1743499770416,0.2056757,128.66,128.65,38.933972]
[1743499771215,0.2056757,128.66,128.65,46.706972]
[1743499772214,0.2056757,128.66,128.65,38.933972]
[1743499775303,0.2056757,128.66,128.65,46.706972]
[1743499777132,0.2056757,128.66,128.65,38.933972]
[1743499777731,0.2056757,128.66,128.63,20.03]
[1743499777732,19.30617199,128.66,128.63,20.03]
[1743499778029,11.32789629,128.65,128.64,18.79181043]
[1743499779036,19.10089629,128.65,128.64,18.79181043]
[1743499779734,15.01882789,128.65,128.64,18.79181043]
[1743499781845,19.09547186,128.65,128.64,18.79181043]
[1743499782140,19.09547186,128.65,128.63,20.03]
[1743499782443,11.32247186,128.64,128.63,38.82181043]
[1743499783440,19.09607186,128.64,128.63,38.82181043]
[1743499785225,19.25274762,128.64,128.63,38.82181043]
[1743499788449,19.25274762,128.64,128.63,18.82181043]
[1743499790237,19.25274762,128.64,128.63,0.17216157]
[1743499790432,0.15667576,128.64,128.63,38.82181043]
[1743499790617,0.15667576,128.64,128.63,46.59601043]
[1743499790823,0.15667576,128.64,128.63,46.738172]
[1743499796238,0.15667576,128.64,128.63,38.963972]
[1743499796432,0.15667576,128.64,128.63,46.738172]
[1743499798849,0.21967576,128.64,128.63,46.738172]
[1743499800349,0.21967576,128.64,128.63,38.963972]
[1743499801660,7.99327576,128.64,128.63,38.963972]
[1743499801882,0.21967576,128.64,128.63,46.738172]
[1743499804066,7.576e-05,128.64,128.63,46.738172]
[1743499804270,7.576e-05,128.64,128.63,48.79202368]
[1743499804436,0.2263369,128.66,128.65,20.78432314]
[1743499804642,0.2263369,128.66,128.65,44.30591392]
[1743499805136,11.52193318,128.72,128.71,20.0]
[1743499805137,11.38033879,128.72,128.71,20.0]
[1743499805363,30.23121819,128.72,128.71,38.933972]
[1743499805543,30.23121819,128.72,128.71,46.703372]
[1743499806084,0.23121819,128.72,128.71,46.703372]
[1743499807974,0.23121819,128.72,128.71,38.933972]
[1743499808981,0.23121819,128.72,128.71,46.703372]
[1743499810054,0.23121819,128.72,128.71,47.203372]
[1743499810981,0.23121819,128.72,128.71,46.703372]
[1743499811783,0.23121819,128.72,128.71,47.203372]
[1743499812488,0.16767591,128.73,128.72,18.933972]
[1743499812860,7.591e-05,128.73,128.72,20.98690176]
[1743499814158,7.591e-05,128.73,128.72,28.75570176]
[1743499815000,5.9e-05,128.74,128.73,39.433972]
[1743499816280,8.056e-05,128.75,128.74,19.433972]
[1743499817054,8.056e-05,128.75,128.74,20.98629907]
[1743499817360,8.056e-05,128.75,128.74,24.55929907]
[1743499818086,0.063,128.79,128.78,38.933972]
[1743499818279,0.063,128.79,128.78,46.699072]
[1743499819368,0.063,128.79,128.78,47.199072]
[1743499819582,0.063,128.79,128.78,46.699072]
[1743499819878,0.063,128.79,128.78,38.933972]
[1743499820271,0.063,128.79,128.78,46.699072]
[1743499820976,0.063,128.79,128.78,47.199072]
[1743499821369,0.063,128.79,128.78,46.699072]
[1743499821564,0.063,128.79,128.78,47.199072]
[1743499822167,0.063,128.82,128.79,26.698472]
[1743499823986,0.063,128.82,128.81,38.933972]
[1743499824287,0.063,128.82,128.81,46.697272]
[1743499824493,0.063,128.82,128.81,38.933972]
[1743499824677,0.063,128.82,128.81,46.697272]
[1743499824872,0.063,128.82,128.81,38.933972]
[1743499825366,0.21905058,128.82,128.81,38.933972]
[1743499826293,26.44258937,128.82,128.81,0.14216157]
[1743499826475,20.0,128.79,128.77,20.0]
[1743499826786,11.31733879,128.78,128.75,20.0]
[1743499826983,11.31733879,128.76,128.75,20.0]
[1743499827392,11.31733879,128.76,128.75,38.933972]
[1743499827589,18.46083879,128.77,128.76,18.933972]
[1743499827782,7.1435,128.77,128.76,18.933972]
[1743499827985,7.1435,128.81,128.8,20.28432314]
[1743499828374,18.46083879,128.81,128.8,38.933972]
[1743499828692,7.1435,128.81,128.8,38.933972]
[1743499829599,0.21905058,128.82,128.81,18.933972]
[1743499830794,0.21905058,128.82,128.81,26.697272]
[1743499831992,0.21905058,128.82,128.81,18.933972]
[1743499833184,0.21905058,128.82,128.81,26.697272]
[1743499833575,0.21905058,128.82,128.81,18.933972]
[1743499834998,29.53448937,128.82,128.79,18.64964886]
[1743499835195,11.31733879,128.81,128.8,0.14216157]
[1743499835501,11.31733879,128.81,128.79,0.14216157]
[1743499835678,18.21715058,128.82,128.8,0.03]
[1743499836007,11.31733879,128.81,128.8,0.03]
[1743499836177,21.77178937,128.82,128.81,0.14216157]
[1743499836694,10.45445058,128.82,128.81,0.14216157]
[1743499836997,21.77178937,128.82,128.81,0.14216157]
[1743499838600,10.45445058,128.82,128.81,0.14216157]
[1743499838908,0.21905058,128.82,128.81,18.933972]
[1743499839087,0.21905058,128.82,128.81,26.697272]
[1743499841601,5.058e-05,128.82,128.81,28.24905327]
[1743499842177,5.058e-05,128.82,128.81,26.697272]
[1743499845209,0.063,128.83,128.82,38.933972]
[1743499845506,0.23194448,128.83,128.82,39.433972]
[1743499845700,0.23194448,128.83,128.82,40.98552752]
[1743499846816,0.23194448,128.83,128.82,40.48552752]
[1743499846991,0.23194448,128.83,128.82,38.933972]
[1743499847184,0.23194448,128.83,128.82,46.696672]
[1743499848995,4.448e-05,128.83,128.82,46.696672]
[1743499849196,4.448e-05,128.83,128.82,47.196672]
[1743499849393,1.547e-05,128.84,128.83,18.933972]
[1743499849596,1.547e-05,128.84,128.83,20.4855371]
[1743499849781,1.547e-05,128.84,128.83,20.9855371]
[1743499850184,1.547e-05,128.84,128.83,24.4090371]
[1743499850485,1.547e-05,128.84,128.83,22.857472]
[1743499850983,1.547e-05,128.84,128.83,18.933972]
[1743499851308,1.547e-05,128.84,128.83,26.696072]
[1743499853119,1.547e-05,128.84,128.83,18.933972]
[1743499853289,11.31735426,128.84,128.83,0.14216157]
[1743499853484,100.77885426,128.84,128.8,0.03]
[1743499853797,81.70001547,128.84,128.81,0.28432314]
[1743499854010,1.547e-05,128.84,128.83,0.28432314]
[1743499854205,1.547e-05,128.84,128.83,18.933972]
[1743499855511,1.547e-05,128.84,128.83,26.696072]
[1743499856206,1.547e-05,128.84,128.83,27.196072]
[1743499856393,4.055e-05,128.85,128.84,38.933972]
[1743499857799,4.055e-05,128.85,128.84,46.695472]
[1743499857995,3.137e-05,128.86,128.85,19.433972]
[1743499859016,18.00681764,128.92,128.91,0.14216157]
[1743499859196,10.25011764,128.92,128.91,38.933972]
[1743499860096,21.56745643,128.92,128.91,38.933972]
[1743499860912,10.25011764,128.92,128.91,38.933972]
[1743499862093,29.32415643,128.92,128.91,38.933972]
[1743499862299,29.32415643,128.92,128.91,0.14216157]
[1743499863327,29.32415643,128.92,128.9,18.64964886]
[1743499863623,11.31733879,128.91,128.9,18.933972]
[1743499865093,10.25011764,128.92,128.91,38.933972]
[1743499865300,21.70746216,128.92,128.91,38.933972]
[1743499866725,21.70746216,128.92,128.91,20.0]
[1743499868403,10.39012337,128.92,128.91,38.933972]
[1743499868625,7.06620573,128.92,128.91,46.691272]
[1743499869008,7.06620573,128.92,128.91,38.933972]
[1743499869206,0.14000573,128.92,128.91,46.691272]
[1743499869621,0.14000573,128.92,128.91,38.933972]
[1743499869825,0.14000573,128.92,128.91,46.691272]
[1743499870105,0.17000573,128.92,128.91,46.691272]
[1743499871037,0.17000573,128.92,128.91,38.933972]
[1743499871714,0.17000573,128.92,128.91,46.691272]
[1743499871919,11.48734452,128.92,128.91,38.933972]
[1743499872602,11.48734452,128.92,128.91,20.0]
[1743499873033,11.48734452,128.92,128.9,18.933972]
[1743499873327,11.31733879,128.91,128.9,18.933972]
[1743499873918,11.48734452,128.92,128.91,38.933972]
[1743499874325,11.48734452,128.92,128.91,20.0]
[1743499874526,0.17000573,128.92,128.91,20.0]
[1743499874734,11.48734452,128.92,128.91,20.0]
[1743499875235,11.48734452,128.92,128.9,7.7576]
[1743499875404,11.48734452,128.92,128.9,26.40724886]
[1743499875611,0.17000573,128.92,128.9,26.40724886]
[1743499876711,11.48734452,128.92,128.9,26.40724886]
[1743499877728,0.17000573,128.92,128.9,26.40724886]
[1743499877916,0.17000573,128.92,128.91,38.933972]
[1743499878523,5.73e-06,128.92,128.91,38.933972]
[1743499878814,6.139e-05,128.93,128.91,46.691272]
[1743499879013,1.466e-05,128.94,128.93,38.933972]
[1743499881025,1.466e-05,128.94,128.93,46.690072]
[1743499881926,0.03001466,128.94,128.93,46.690072]
[1743499883508,1.466e-05,128.94,128.93,46.690072]
[1743499883832,3.436e-05,128.95,128.94,18.933972]
[1743499884120,3.436e-05,128.95,128.94,20.4842689]
[1743499884508,3.436e-05,128.95,128.94,18.933972]
[1743499884703,0.20551573,128.96,128.95,38.933972]
[1743499884704,5.009e-05,128.96,128.95,38.933972]
[1743499884902,9.591e-05,128.98,128.97,59.433972]
[1743499885214,0.03,129.05,129.02,20.28432314]
[1743499885418,0.21836844,129.03,129.02,38.933972]
[1743499887537,0.21836844,129.03,129.02,46.684672]
[1743499888627,0.21836844,129.03,129.02,38.933972]
[1743499892107,0.21836844,129.03,129.02,46.684672]
[1743499894419,11.48125279,129.03,129.02,38.933972]
[1743499895319,19.23135279,129.03,129.0,20.0]
[1743499895520,11.26288435,129.02,129.01,18.933972]
[1743499895822,11.26288435,129.02,128.96,3.436]
[1743499895823,19.01358435,129.02,128.99,18.933972]
[1743499896011,11.26288435,129.0,128.98,20.0]
[1743499896209,11.26288435,128.99,128.98,38.933972]
[1743499897723,7.7519,129.0,128.98,38.933972]
[1743499897936,11.26288435,128.99,128.98,38.933972]
[1743499900339,19.01538435,128.99,128.98,38.933972]
[1743499901623,11.26288435,128.99,128.98,38.933972]
[1743499902235,11.26288435,129.0,128.98,38.933972]
[1743499903743,11.26288435,128.99,128.98,20.0]
[1743499903925,11.26288435,128.99,128.96,38.64964886]
[1743499904240,11.26288435,128.97,128.96,38.933972]
[1743499905023,7.0889,129.0,128.99,18.933972]
[1743499905215,11.26288435,129.01,128.99,18.933972]
[1743499905435,0.15350816,129.0,128.99,18.933972]
[1743499906533,0.15350816,129.0,128.99,26.686472]
[1743499907548,0.15350816,129.0,128.99,18.933972]
[1743499907719,0.15350816,129.0,128.99,26.686472]
[1743499907919,0.15350816,129.0,128.99,18.933972]
[1743499909048,11.41639251,129.0,128.99,18.933972]
[1743499909838,11.41639251,129.0,128.98,20.0]
[1743499910045,11.26288435,128.99,128.98,20.0]
[1743499910351,11.26288435,128.99,128.97,18.996972]
[1743499910668,11.26288435,128.98,128.97,18.996972]
[1743499910873,11.26288435,128.98,128.97,26.750672]
[1743499911177,11.26288435,128.99,128.97,26.750672]
[1743499911751,11.41639251,129.0,128.98,20.0]